[Event "DVM U14 2024"]
[Site "Heidelberg"]
[Date "2024.12.27"]
[Round "1"]
[White "Aweh, Mads"]
[Black "Hempel, Lorenz"]
[Result "1/2-1/2"]
[ECO "B36"]
[WhiteElo "1663"]
[BlackElo "1960"]
[Annotator "RC"]
[PlyCount "115"]
[EventDate "2024.12.23"]
[EventType "team-tourn"]
[EventRounds "7"]
[EventCountry "GER"]
[SourceTitle "playchess.com"]
[Source "ChessBase"]
[SourceQuality "1"]
[TimeControl "40/5400+30:1800+30"]

1. e4 {[%emt 0:00:05]} c5 {[%emt 0:00:05]} 2. Nf3 {[%emt 0:00:09]} Nc6 {[%emt 0:00:10]} 3. d4 {[%emt 0:00:10]} cxd4 {[%emt 0:00:06]} 4. Nxd4 {[%emt 0:00:07]} g6 {[%emt 0:00:09]} 5. c4 {[%emt 0:00:15]} Nf6 {[%emt 0:00:10]} 6. Nc3 {[%emt 0:00:09]} d6 {[%emt 0:00:09]} 7. Be2 {[%emt 0:00:16]} Nxd4 {[%emt 0:00:10]} 8. Qxd4 {[%emt 0:00:12]} Bg7 {[%emt 0:00:12]} 9. Be3 {[%emt 0:00:16]} O-O {[%emt 0:00:19]} 10. Qd2 {[%emt 0:00:12]} Be6 {[%emt 0:01:34]} 11. O-O {[%emt 0:00:21]} Qa5 {[%emt 0:01:17]} 12. Rfc1 {[%emt 0:00:41]} Rfc8 {[%emt 0:01:37]} 13. b3 {[%emt 0:00:59]} Nd7 {[%emt 0:14:00]} 14. Rab1 {[%emt 0:03:37]} f5 {[%emt 0:07:16]} 15. Bd3 {[%emt 0:18:14]} Ne5 {[%emt 0:12:12]} 16. f3 {[%emt 0:01:56]} Nxd3 {[%emt 0:08:28]} 17. Qxd3 {[%emt 0:00:16]} a6 {[%emt 0:02:46]} 18. a4 {[%emt 0:02:14]} fxe4 {[%emt 0:10:59]} 19. Qxe4 {[%emt 0:13:01]} Qf5 {[%emt 0:11:17]} 20. Qxf5 {[%emt 0:00:50]} Bxf5 {[%emt 0:00:12]} 21. Nd5 {[%emt 0:05:22]} Kf7 {[%emt 0:08:52]} 22. Nb6 {[%emt 0:01:25]} Rab8 {[%emt 0:02:11]} 23. Nxc8 {[%emt 0:00:38]} Rxc8 {[%emt 0:00:05]} 24. Rd1 {[%emt 0:00:06]} Bxb1 {[%emt 0:00:35]} 25. Rxb1 {[%emt 0:00:06]} Bc3 {[%emt 0:00:43]} 26. Rc1 {[%emt 0:01:22]} Bb4 {[%emt 0:00:34]} 27. Rd1 {[%emt 0:01:46]} Bc5 {[%emt 0:02:56]} 28. Kf2 {[%emt 0:00:36]} Bxe3+ {[%emt 0:01:53]} 29. Kxe3 {[%emt 0:00:06]} Rc5 {[%emt 0:00:06]} 30. Rd4 {[%emt 0:04:10]} Re5+ {[%emt 0:02:54]} 31. Re4 {[%emt 0:01:42]} Kf6 {[%emt 0:01:01]} 32. Rxe5 {[%emt 0:02:49]} Kxe5 {[%emt 0:00:20]} 33. a5 {[%emt 0:01:01]} g5 {[%emt 0:04:51]} 34. g3 {[%emt 0:04:09]} d5 {[%emt 0:02:00]} 35. f4+ {[%emt 0:04:33]} gxf4+ {[%emt 0:00:08]} 36. gxf4+ {[%emt 0:00:08]} Ke6 {[%emt 0:00:05]} 37. cxd5+ {[%emt 0:06:01]} Kxd5 {[%emt 0:00:38]} 38. Kd3 {[%emt 0:00:22]} h6 {[%emt 0:02:32]} 39. h3 {[%emt 0:00:13]} h5 {[%emt 0:00:07]} 40. h4 {[%emt 0:00:05]} e5 {[%emt 0:02:19]} 41. f5 {[%emt 0:31:06]} e4+ {[%emt 0:30:07]} 42. Ke3 {[%emt 0:00:04]} Ke5 {[%emt 0:00:11]} 43. f6 {[%emt 0:00:05]} Kxf6 {[%emt 0:00:06]} 44. Kxe4 {[%emt 0:00:04]} Ke6 {[%emt 0:00:14]} 45. Kf4 {[%emt 0:00:11]} Kd5 {[%emt 0:00:32]} 46. Kg5 {[%emt 0:00:23]} Kc5 {[%emt 0:00:17]} 47. Kxh5 {[%emt 0:00:07]} Kb4 {[%emt 0:00:03]} 48. Kg4 {[%emt 0:00:20]} Kxa5 {[%emt 0:00:35]} 49. h5 {[%emt 0:00:06]} Kb4 {[%emt 0:00:07]} 50. h6 {[%emt 0:00:39]} b5 {[%emt 0:00:09]} 51. h7 {[%emt 0:00:08]} Kxb3 {[%emt 0:00:06]} 52. h8=Q {[%emt 0:00:07]} a5 {[%emt 0:00:08]} 53. Qa1 {[%emt 0:00:26]} a4 {[%emt 0:00:11]} 54. Kf4 {[%emt 0:00:28]} b4 {[%emt 0:00:11]} 55. Ke3 {[%emt 0:00:15]} a3 {[%emt 0:00:07]} 56. Kd3 {[%emt 0:00:13]} a2 {[%emt 0:01:05]} 57. Qc1 {[%emt 0:00:57]} a1=Q {[%emt 0:00:42]} 58. Qxa1 {[%emt 0:01:47]} 1/2-1/2

[Event "DVM U14 2024"]
[Site "Heidelberg"]
[Date "2024.12.27"]
[Round "1"]
[White "Meijers, Jaroslav"]
[Black "Retzlaff, Nick"]
[Result "0-1"]
[ECO "D35"]
[WhiteElo "1663"]
[BlackElo "1979"]
[Annotator "RC"]
[PlyCount "96"]
[EventDate "2024.12.23"]
[EventType "team-tourn"]
[EventRounds "7"]
[EventCountry "GER"]
[SourceTitle "playchess.com"]
[Source "ChessBase"]
[SourceQuality "1"]
[TimeControl "40/5400+30:1800+30"]

1. d4 {[%emt 0:00:07]} Nf6 {[%emt 0:00:02]} 2. c4 {[%emt 0:00:08]} e6 {[%emt 0:00:04]} 3. Nc3 {[%emt 0:00:05]} d5 {[%emt 0:00:06]} 4. cxd5 {[%emt 0:00:10]} exd5 {[%emt 0:00:01]} 5. Bg5 {[%emt 0:00:07]} Be7 {[%emt 0:00:09]} 6. e3 {[%emt 0:00:14]} h6 {[%emt 0:00:02]} 7. Bh4 {[%emt 0:00:17]} O-O {[%emt 0:00:05]} 8. Bd3 {[%emt 0:00:26]} c6 {[%emt 0:00:13]} 9. Nf3 {[%emt 0:01:14]} Ne4 {[%emt 0:00:17]} 10. Bxe7 {[%emt 0:00:42]} Qxe7 {[%emt 0:00:10]} 11. Qc2 {[%emt 0:01:33]} Bf5 {[%emt 0:01:15]} 12. O-O {[%emt 0:05:34]} Nd7 {[%emt 0:00:34]} 13. b4 {[%emt 0:06:23]} Ndf6 {[%emt 0:04:55]} 14. Rab1 {[%emt 0:06:38]} Rfe8 {[%emt 0:02:56]} 15. Ne5 {[%emt 0:03:18]} Ng4 {[%emt 0:11:29]} 16. Nxg4 {[%emt 0:26:05]} Bxg4 {[%emt 0:00:19]} 17. b5 {[%emt 0:01:05]} Rac8 {[%emt 0:03:31]} 18. Qb3 {[%emt 0:06:41]} Nd2 {[%emt 0:00:27]} 19. Qb2 {[%emt 0:25:01]} Nxf1 {[%emt 0:00:26]} 20. Bxf1 {[%emt 0:03:37]} Qd6 {[%emt 0:03:03]} 21. Na4 {[%emt 0:06:52]} Bf5 {[%emt 0:01:17]} 22. Re1 {[%emt 0:02:55]} cxb5 {[%emt 0:01:11]} 23. Bxb5 {[%emt 0:01:26]} Rc2 {[%emt 0:02:55]} 24. Qb3 {[%emt 0:01:11]} Rec8 {[%emt 0:00:17]} 25. Nc5 {[%emt 0:00:25]} a6 {[%emt 0:10:33]} 26. Bd3 {[%emt 0:00:26]} Bxd3 {[%emt 0:00:34]} 27. Qxd3 {[%emt 0:00:46]} Rc4 {[%emt 0:01:52]} 28. Nxb7 {[%emt 0:00:28]} Rc1 {[%emt 0:00:49]} 29. Qf1 {[%emt 0:00:34]} Rxe1 {[%emt 0:00:39]} 30. Qxe1 {[%emt 0:00:03]} Qa3 {[%emt 0:00:17]} 31. Nc5 {[%emt 0:00:29]} Qxa2 {[%emt 0:00:08]} 32. g3 {[%emt 0:00:27]} Rb8 {[%emt 0:00:19]} 33. Kg2 {[%emt 0:00:47]} a5 {[%emt 0:00:10]} 34. Qd1 {[%emt 0:00:43]} Rb2 {[%emt 0:00:18]} 35. Nd3 {[%emt 0:00:24]} Rd2 {[%emt 0:01:22]} 36. Qg4 {[%emt 0:00:30]} Qc2 {[%emt 0:00:41]} 37. Ne1 {[%emt 0:00:38]} Qe4+ {[%emt 0:00:20]} 38. Qf3 {[%emt 0:00:28]} a4 {[%emt 0:00:11]} 39. Kf1 {[%emt 0:00:30]} a3 {[%emt 0:00:36]} 40. Qxe4 {[%emt 0:00:32]} dxe4 {[%emt 0:00:02]} 41. Ng2 {[%emt 0:30:11]} a2 {[%emt 0:30:12]} 42. Nf4 {[%emt 0:00:03]} a1=Q+ {[%emt 0:00:11]} 43. Kg2 {[%emt 0:00:04]} Qd1 {[%emt 0:00:21]} 44. d5 {[%emt 0:00:21]} Qf3+ {[%emt 0:00:13]} 45. Kh3 {[%emt 0:00:06]} Rxf2 {[%emt 0:00:05]} 46. d6 {[%emt 0:00:10]} g5 {[%emt 0:00:34]} 47. Ng2 {[%emt 0:01:19]} Qh5+ {[%emt 0:00:16]} 48. Nh4 {[%emt 0:00:06]} g4# {[%emt 0:00:39]} 0-1

[Event "DVM U14 2024"]
[Site "Heidelberg"]
[Date "2024.12.27"]
[Round "1"]
[White "Li, Xiao Teng"]
[Black "Scharff, Oskar"]
[Result "1/2-1/2"]
[ECO "E06"]
[WhiteElo "1661"]
[BlackElo "1583"]
[Annotator "NA RC"]
[PlyCount "77"]
[EventDate "2024.12.23"]
[EventType "team-tourn"]
[EventRounds "7"]
[EventCountry "GER"]
[SourceTitle "playchess.com"]
[Source "ChessBase"]
[SourceQuality "1"]
[TimeControl "40/5400+30:1800+30"]

1. c4 {[%emt 0:00:05]} e6 {[%emt 0:00:19]} 2. d4 {[%emt 0:00:08]} d5 {[%emt 0:00:09]} 3. Nc3 {[%emt 0:00:14]} Nf6 {[%emt 0:00:13]} 4. g3 {[%emt 0:00:30]} Be7 {[%emt 0:00:45]} 5. Bg2 {[%emt 0:00:19]} O-O {[%emt 0:01:01]} 6. Nf3 {[%emt 0:00:46]} c6 {[%emt 0:01:40]} 7. a4 {[%emt 0:00:42]} Nbd7 {[%emt 0:08:06]} 8. c5 {[%emt 0:06:55]} Re8 {[%emt 0:09:41]} 9. O-O {[%emt 0:06:05]} Bf8 {[%emt 0:03:11]} 10. Bf4 {[%emt 0:02:50]} Nh5 {[%emt 0:02:35]} 11. Qd2 {[%emt 0:12:45]} Nxf4 {[%emt 0:02:02]} 12. Qxf4 {[%emt 0:00:16]} f6 {[%emt 0:01:17]} 13. e4 {[%emt 0:00:54]} e5 {[%emt 0:01:29]} 14. Qe3 {[%emt 0:03:53]} exd4 {[%emt 0:02:11]} 15. Qxd4 {[%emt 0:00:11]} Bxc5 {[%emt 0:01:28]} 16. Qd3 {[%emt 0:00:17]} dxe4 {[%emt 0:06:31]} 17. Nxe4 {[%emt 0:00:11]} Bb6 {[%emt 0:03:39]} 18. Rad1 {[%emt 0:02:10]} Qc7 {[%emt 0:02:46]} 19. Nd6 {[%emt 0:01:06]} Re7 {[%emt 0:02:11]} 20. Rfe1 {[%emt 0:06:01]} Nc5 {[%emt 0:11:40]} 21. Rxe7 {[%emt 0:04:19]} Qxe7 {[%emt 0:00:34]} 22. Qc2 {[%emt 0:05:54]} Be6 {[%emt 0:04:54]} 23. Nc4 {[%emt 0:03:31]} Rd8 {[%emt 0:04:40]} 24. Re1 {[%emt 0:01:00]} Qf7 {[%emt 0:00:48]} 25. Nxb6 {[%emt 0:03:04]} axb6 {[%emt 0:00:12]} 26. a5 {[%emt 0:01:21]} Nd7 {[%emt 0:03:05]} 27. axb6 {[%emt 0:00:28]} Nxb6 {[%emt 0:00:08]} 28. Qc5 {[%emt 0:00:25]} Nd5 {[%emt 0:04:46]} 29. Nd4 {[%emt 0:01:07]} Re8 {[%emt 0:02:14]} 30. Qd6 {[%emt 0:01:05]} Bd7 {[%emt 0:01:58]} 31. Rxe8+ {[%emt 0:01:16]} Bxe8 {[%emt 0:00:17]} 32. Nf5 {[%emt 0:01:21]} Qd7 {[%emt 0:16:39]} 33. Bxd5+ {[%emt 0:00:27]} cxd5 {[%emt 0:00:16]} 34. Qxd7 {[%emt 0:00:31]} Bxd7 {[%emt 0:00:06]} 35. Ne7+ {[%emt 0:00:07]} Kf7 {[%emt 0:00:07]} 36. Nxd5 {[%emt 0:00:09]} Ke6 {[%emt 0:00:32]} 37. Nc3 {[%emt 0:00:34]} Ke5 {[%emt 0:00:19]} 38. Kf1 {[%emt 0:00:22]} Kd4 {[%emt 0:00:31]} 39. Ke2 {[%emt 0:01:56]} 1/2-1/2

[Event "DVM U14 2024"]
[Site "Heidelberg"]
[Date "2024.12.27"]
[Round "1"]
[White "Zabashtanskyi, Andrii"]
[Black "Han, Erdem"]
[Result "0-1"]
[ECO "D52"]
[WhiteElo "1644"]
[BlackElo "1751"]
[Annotator "NA RC"]
[PlyCount "76"]
[EventDate "2024.12.23"]
[EventType "team-tourn"]
[EventRounds "7"]
[EventCountry "GER"]
[SourceTitle "playchess.com"]
[Source "ChessBase"]
[SourceQuality "1"]
[TimeControl "40/5400+30:1800+30"]

1. d4 {[%emt 0:00:06]} d5 {[%emt 0:00:07]} 2. c4 {[%emt 0:00:10]} c6 {[%emt 0:00:06]} 3. Nc3 {[%emt 0:00:16]} Nf6 {[%emt 0:00:31]} 4. Bg5 {[%emt 0:01:12]} e6 {[%emt 0:00:32]} 5. Nf3 {[%emt 0:00:14]} Nbd7 {[%emt 0:00:57]} 6. e3 {[%emt 0:00:32]} Qa5 {[%emt 0:01:53]} 7. Bd3 {[%emt 0:02:24]} dxc4 {[%emt 0:02:00]} 8. Bxc4 {[%emt 0:01:10]} Ne4 {[%emt 0:02:11]} 9. Qa4 {[%emt 0:11:28]} Qxa4 {[%emt 0:06:05]} 10. Nxa4 {[%emt 0:00:18]} b5 {[%emt 0:01:13]} 11. Bb3 {[%emt 0:03:53]} Nxg5 {[%emt 0:04:36]} 12. Nxg5 {[%emt 0:00:21]} bxa4 {[%emt 0:00:21]} 13. Bxa4 {[%emt 0:00:18]} Bb4+ {[%emt 0:05:42]} 14. Ke2 {[%emt 0:00:48]} Ba6+ {[%emt 0:01:32]} 15. Kf3 {[%emt 0:00:42]} Bb5 {[%emt 0:02:00]} 16. Bb3 {[%emt 0:06:43]} h6 {[%emt 0:01:58]} 17. Ne4 {[%emt 0:01:36]} f5 {[%emt 0:01:13]} 18. Ng3 {[%emt 0:01:10]} Ke7 {[%emt 0:01:54]} 19. a4 {[%emt 0:04:14]} Ba6 {[%emt 0:01:24]} 20. Rac1 {[%emt 0:03:08]} g5 {[%emt 0:01:36]} 21. Bc4 {[%emt 0:02:20]} Bb7 {[%emt 0:03:46]} 22. Ke2 {[%emt 0:03:00]} Nf6 {[%emt 0:02:06]} 23. f3 {[%emt 0:03:13]} Rhd8 {[%emt 0:01:27]} 24. Rhd1 {[%emt 0:06:29]} Rd7 {[%emt 0:02:25]} 25. Rd3 {[%emt 0:05:54]} Rad8 {[%emt 0:01:55]} 26. Rcd1 {[%emt 0:00:56]} Nd5 {[%emt 0:00:56]} 27. Nf1 {[%emt 0:06:26]} Nb6 {[%emt 0:01:37]} 28. b3 {[%emt 0:02:43]} Nxc4 {[%emt 0:02:21]} 29. bxc4 {[%emt 0:00:38]} Ba6 {[%emt 0:00:33]} 30. Rc1 {[%emt 0:00:43]} f4 {[%emt 0:04:39]} 31. Nd2 {[%emt 0:02:45]} Bxd2 {[%emt 0:02:30]} 32. Rxd2 {[%emt 0:00:13]} e5 {[%emt 0:01:33]} 33. Kf2 {[%emt 0:05:16]} fxe3+ {[%emt 0:00:30]} 34. Kxe3 {[%emt 0:00:06]} Rxd4 {[%emt 0:00:08]} 35. Rdc2 {[%emt 0:00:17]} Ke6 {[%emt 0:00:51]} 36. Rc3 {[%emt 0:00:14]} Rd2 {[%emt 0:00:35]} 37. R1c2 {[%emt 0:00:13]} Rxc2 {[%emt 0:00:16]} 38. Rxc2 {[%emt 0:00:07]} Rd4 {[%emt 0:00:11]} 0-1

[Event "DVM U14 2024"]
[Site "Heidelberg"]
[Date "2024.12.27"]
[Round "1"]
[White "Belenki, Janis"]
[Black "Bohatyrova, Mariia"]
[Result "1-0"]
[ECO "B72"]
[WhiteElo "1611"]
[BlackElo "1682"]
[Annotator "NA RC"]
[PlyCount "147"]
[EventDate "2024.12.23"]
[EventType "team-tourn"]
[EventRounds "7"]
[EventCountry "GER"]
[SourceTitle "playchess.com"]
[Source "ChessBase"]
[SourceQuality "1"]
[TimeControl "40/5400+30:1800+30"]

1. e4 {[%emt 0:00:09]} c5 {[%emt 0:00:06]} 2. Nf3 {[%emt 0:00:09]} d6 {[%emt 0:00:11]} 3. d4 {[%emt 0:00:17]} cxd4 {[%emt 0:00:06]} 4. Nxd4 {[%emt 0:00:09]} Nf6 {[%emt 0:00:08]} 5. Nc3 {[%emt 0:00:08]} g6 {[%emt 0:00:20]} 6. Be3 {[%emt 0:00:14]} Nc6 {[%emt 0:01:02]} 7. f3 {[%emt 0:00:55]} h5 {[%emt 0:00:13]} 8. Qd2 {[%emt 0:02:19]} Nxd4 {[%emt 0:00:20]} 9. Bxd4 {[%emt 0:03:14]} Bh6 {[%emt 0:00:34]} 10. Be3 {[%emt 0:01:07]} Bxe3 {[%emt 0:00:09]} 11. Qxe3 {[%emt 0:00:06]} Be6 {[%emt 0:00:37]} 12. Bb5+ {[%emt 0:04:24]} Kf8 {[%emt 0:00:41]} 13. O-O {[%emt 0:03:09]} Qa5 {[%emt 0:02:28]} 14. Rfe1 {[%emt 0:07:06]} Rc8 {[%emt 0:10:36]} 15. Bd3 {[%emt 0:04:18]} Qc5 {[%emt 0:03:29]} 16. Qxc5 {[%emt 0:06:46]} Rc7 {[%emt 0:00:09]} 17. Qc6 Rxc6 {[%emt 0:00:30]} 18. Na4 {[%emt 0:04:09]} Rc7 {[%emt 0:04:14]} 19. b3 {[%emt 0:03:23]} Kg7 {[%emt 0:17:27]} 20. c4 {[%emt 0:07:10]} Rhc8 {[%emt 0:22:07]} 21. Nc3 {[%emt 0:07:03]} Bd7 {[%emt 0:03:55]} 22. f4 {[%emt 0:12:48]} e6 {[%emt 0:08:54]} 23. e5 {[%emt 0:08:03]} dxe5 {[%emt 0:06:15]} 24. fxe5 {[%emt 0:00:53]} Ng4 {[%emt 0:01:21]} 25. h3 {[%emt 0:07:12]} Nh6 {[%emt 0:00:45]} 26. Ne4 {[%emt 0:02:13]} Bc6 {[%emt 0:07:01]} 27. Nd6 {[%emt 0:02:59]} Rd8 {[%emt 0:00:17]} 28. Rad1 {[%emt 0:01:42]} Rcd7 {[%emt 0:01:32]} 29. c5 {[%emt 0:04:32]} Nf5 {[%emt 0:02:29]} 30. Bxf5 {[%emt 0:02:28]} gxf5 {[%emt 0:00:10]} 31. Rd3 {[%emt 0:01:30]} Kh7 {[%emt 0:02:49]} 32. Rc3 {[%emt 0:03:37]} Rg8 {[%emt 0:01:01]} 33. Re2 {[%emt 0:00:46]} Bd5 {[%emt 0:01:49]} 34. b4 {[%emt 0:01:09]} a6 {[%emt 0:01:12]} 35. a4 {[%emt 0:00:23]} f4 {[%emt 0:01:28]} 36. Kh2 {[%emt 0:00:51]} Rc7 {[%emt 0:01:09]} 37. Ne4 {[%emt 0:00:29]} Bxe4 {[%emt 0:00:50]} 38. Rxe4 {[%emt 0:00:09]} Rg5 {[%emt 0:00:30]} 39. b5 {[%emt 0:00:34]} axb5 {[%emt 0:00:20]} 40. axb5 {[%emt 0:00:08]} Kg6 {[%emt 0:00:39]} 41. Rcc4 {[%emt 0:31:18]} f5 {[%emt 0:30:33]} 42. Rxf4 {[%emt 0:00:34]} Kf7 {[%emt 0:00:00]} 43. c6 {[%emt 0:00:00]} Ke7 {[%emt 0:00:00]} 44. g3 {[%emt 0:00:00]} Rg8 {[%emt 0:00:00]} 45. Rfd4 {[%emt 0:00:00]} Rb8 {[%emt 0:00:00]} 46. Rd2 {[%emt 0:00:00]} bxc6 {[%emt 0:01:25]} 47. bxc6 {[%emt 0:00:00]} Rb6 {[%emt 0:01:10]} 48. Rdc2 {[%emt 0:00:00]} Rb5 {[%emt 0:00:22]} 49. Rc5 {[%emt 0:00:00]} Rxc5 {[%emt 0:00:29]} 50. Rxc5 {[%emt 0:00:00]} Kf7 {[%emt 0:00:39]} 51. Kg2 {[%emt 0:00:00]} Kg6 {[%emt 0:00:31]} 52. Kf2 {[%emt 0:00:00]} Kg5 {[%emt 0:00:28]} 53. Kf3 {[%emt 0:00:00]} Kg6 {[%emt 0:00:14]} 54. h4 {[%emt 0:00:00]} Kf7 {[%emt 0:00:17]} 55. Kf4 {[%emt 0:00:00]} Kg6 {[%emt 0:00:14]} 56. Rc4 {[%emt 0:00:20]} Kh6 {[%emt 0:01:01]} 57. Ke3 {[%emt 0:00:08]} Kg6 {[%emt 0:00:06]} 58. Kd4 {[%emt 0:01:41]} Kf7 {[%emt 0:01:12]} 59. Kc5 {[%emt 0:02:05]} Ke7 {[%emt 0:00:40]} 60. Rd4 {[%emt 0:00:38]} Rc8 {[%emt 0:00:44]} 61. Kb6 {[%emt 0:00:45]} Rb8+ {[%emt 0:00:25]} 62. Kc7 {[%emt 0:00:44]} Re8 {[%emt 0:00:31]} 63. Rd7+ {[%emt 0:00:18]} Kf8 {[%emt 0:00:07]} 64. Rd8 {[%emt 0:00:07]} Ke7 {[%emt 0:00:21]} 65. Rxe8+ {[%emt 0:00:25]} Kxe8 {[%emt 0:00:04]} 66. Kb8 {[%emt 0:01:04]} Ke7 {[%emt 0:01:09]} 67. c7 {[%emt 0:00:34]} Kf7 {[%emt 0:00:29]} 68. c8=Q {[%emt 0:00:10]} f4 {[%emt 0:00:24]} 69. Qd7+ {[%emt 0:00:35]} Kf8 {[%emt 0:00:39]} 70. gxf4 {[%emt 0:00:22]} Kg8 {[%emt 0:00:04]} 71. f5 {[%emt 0:00:07]} exf5 {[%emt 0:00:08]} 72. e6 {[%emt 0:00:07]} f4 {[%emt 0:00:10]} 73. Qf7+ {[%emt 0:00:12]} Kh8 {[%emt 0:00:07]} 74. e7 {[%emt 0:00:06]} 1-0

[Event "DVM U14 2024"]
[Site "Heidelberg"]
[Date "2024.12.27"]
[Round "1"]
[White "Schirmer, Enias"]
[Black "Hahn, Julian"]
[Result "0-1"]
[ECO "C50"]
[WhiteElo "1594"]
[BlackElo "1727"]
[Annotator "NA RC"]
[PlyCount "100"]
[EventDate "2024.12.23"]
[EventType "team-tourn"]
[EventRounds "7"]
[EventCountry "GER"]
[SourceTitle "playchess.com"]
[Source "ChessBase"]
[SourceQuality "1"]
[TimeControl "40/5400+30:1800+30"]

1. e4 {[%emt 0:00:03]} e5 {[%emt 0:00:03]} 2. Nf3 {[%emt 0:00:10]} Nc6 {[%emt 0:00:02]} 3. Bc4 {[%emt 0:00:11]} Bc5 {[%emt 0:00:03]} 4. Nc3 {[%emt 0:00:18]} d6 {[%emt 0:00:10]} 5. d3 {[%emt 0:00:18]} Bg4 {[%emt 0:00:41]} 6. h3 {[%emt 0:00:52]} Bh5 {[%emt 0:01:03]} 7. Be3 {[%emt 0:07:19]} Bb6 {[%emt 0:01:42]} 8. Nd5 {[%emt 0:08:08]} Na5 {[%emt 0:10:16]} 9. Bb3 {[%emt 0:07:08]} Nxb3 {[%emt 0:03:12]} 10. axb3 {[%emt 0:00:27]} Ne7 {[%emt 0:07:22]} 11. Nxb6 {[%emt 0:11:11]} axb6 {[%emt 0:00:17]} 12. g4 {[%emt 0:06:29]} Bg6 {[%emt 0:00:24]} 13. Ke2 {[%emt 0:03:07]} Nc6 {[%emt 0:30:39]} 14. Rxa8 {[%emt 0:08:36]} Qxa8 {[%emt 0:00:07]} 15. Qa1 {[%emt 0:00:05]} Ke7 {[%emt 0:05:55]} 16. c3 {[%emt 0:02:51]} Qa6 {[%emt 0:09:48]} 17. Qxa6 {[%emt 0:02:14]} bxa6 {[%emt 0:00:05]} 18. Ra1 {[%emt 0:10:01]} a5 {[%emt 0:03:55]} 19. Ne1 {[%emt 0:01:05]} Rd8 {[%emt 0:06:18]} 20. Nc2 {[%emt 0:05:46]} d5 {[%emt 0:02:38]} 21. f3 {[%emt 0:01:51]} f6 {[%emt 0:01:46]} 22. c4 {[%emt 0:01:10]} dxe4 {[%emt 0:01:50]} 23. fxe4 {[%emt 0:05:30]} h5 {[%emt 0:02:15]} 24. Rh1 {[%emt 0:07:23]} Rh8 {[%emt 0:01:48]} 25. g5 {[%emt 0:02:34]} f5 {[%emt 0:01:03]} 26. exf5 {[%emt 0:01:30]} Bxf5 {[%emt 0:00:09]} 27. h4 {[%emt 0:00:54]} Rd8 {[%emt 0:00:34]} 28. Ne1 {[%emt 0:03:22]} Nb4 {[%emt 0:02:15]} 29. Rf1 {[%emt 0:02:15]} g6 {[%emt 0:00:21]} 30. Bd2 {[%emt 0:00:50]} Nxd3 {[%emt 0:00:33]} 31. Kd1 {[%emt 0:01:47]} Nxb2+ {[%emt 0:00:42]} 32. Kc1 {[%emt 0:00:24]} Nd3+ {[%emt 0:00:00]} 33. Nxd3 {[%emt 0:00:14]} Rxd3 {[%emt 0:00:00]} 34. Re1 {[%emt 0:00:21]} e4 {[%emt 0:00:49]} 35. Kc2 {[%emt 0:00:17]} e3 {[%emt 0:00:40]} 36. Bc3 {[%emt 0:00:47]} Rd2+ {[%emt 0:00:37]} 37. Kc1 {[%emt 0:00:17]} Rc2+ {[%emt 0:00:10]} 38. Kd1 {[%emt 0:01:13]} Rxc3 {[%emt 0:00:08]} 39. Ke2 {[%emt 0:00:29]} Bg4+ {[%emt 0:00:41]} 40. Kf1 {[%emt 0:00:12]} Rxb3 {[%emt 0:00:49]} 41. c5 {[%emt 0:30:46]} a4 {[%emt 0:30:26]} 42. cxb6 {[%emt 0:00:18]} cxb6 {[%emt 0:00:05]} 43. Kg2 {[%emt 0:00:09]} e2 {[%emt 0:00:55]} 44. Kf2 {[%emt 0:00:15]} a3 {[%emt 0:00:27]} 45. Kg2 {[%emt 0:00:17]} a2 {[%emt 0:00:33]} 46. Kh2 {[%emt 0:01:27]} Rb1 {[%emt 0:00:08]} 47. Rg1 {[%emt 0:00:30]} a1=Q {[%emt 0:00:38]} 48. Rg2 {[%emt 0:00:22]} Rh1+ {[%emt 0:00:38]} 49. Kg3 {[%emt 0:00:11]} Qe5+ {[%emt 0:00:12]} 50. Kf2 {[%emt 0:00:24]} e1=Q# {[%emt 0:00:06]} 0-1

[Event "DVM U14 2024"]
[Site "Heidelberg"]
[Date "2024.12.27"]
[Round "1"]
[White "Nguyen, Bach Khoi"]
[Black "Blumenthal Tuset, Sebastian"]
[Result "1-0"]
[ECO "B01"]
[WhiteElo "1590"]
[BlackElo "1732"]
[Annotator "NA RC"]
[PlyCount "21"]
[EventDate "2024.12.23"]
[EventType "team-tourn"]
[EventRounds "7"]
[EventCountry "GER"]
[SourceTitle "playchess.com"]
[Source "ChessBase"]
[SourceQuality "1"]
[TimeControl "40/5400+30:1800+30"]

1. e4 {[%emt 0:00:02]} d5 {[%emt 0:00:11]} 2. exd5 {[%emt 0:00:08]} Qxd5 {[%emt 0:00:07]} 3. Nc3 {[%emt 0:00:11]} Qd6 {[%emt 0:00:06]} 4. d4 {[%emt 0:00:08]} Nf6 {[%emt 0:00:12]} 5. Nf3 {[%emt 0:00:16]} c6 {[%emt 0:00:25]} 6. Ne5 {[%emt 0:05:18]} Bf5 {[%emt 0:02:38]} 7. Bf4 {[%emt 0:03:53]} Qb4 {[%emt 0:02:52]} 8. Nc4 {[%emt 0:02:54]} Nd5 {[%emt 0:03:05]} 9. Bd2 {[%emt 0:03:18]} Ne3 {[%emt 0:19:36]} 10. fxe3 {[%emt 0:01:12]} c5 {[%emt 0:00:51]} 11. a3 {[%emt 0:00:41]} 1-0